[Event "Early-Titled-Tuesday-Blitz-February-13-2024"]
[Site "Chess.com"]
[Date "2024.02.13"]
[Round "7"]
[White "Aslanov_Umid"]
[Black "Yaacovn"]
[Result "0-1"]
[WhiteElo "2682"]
[BlackElo "2927"]
[TimeControl "180+1"]
[EndTime "9:19:36 PST"]
[Termination "Yaacovn won by checkmate"]

1. e4 {[%clk 0:03:00.9]} 1... c6 {[%clk 0:02:56.3]} 2. d4 {[%clk 0:03:00.9]}
2... d5 {[%clk 0:02:55.3]} 3. Nd2 {[%clk 0:03:01.3]} 3... dxe4 {[%clk
0:02:55.7]} 4. Nxe4 {[%clk 0:03:01.2]} 4... Nf6 {[%clk 0:02:56.6]} 5. Nxf6+
{[%clk 0:03:01.4]} 5... gxf6 {[%clk 0:02:57.5]} 6. c3 {[%clk 0:03:02.1]} 6...
Qd5 {[%clk 0:02:57.6]} 7. Qf3 {[%clk 0:03:01]} 7... Bf5 {[%clk 0:02:57.6]} 8.
Qxd5 {[%clk 0:03:00.5]} 8... cxd5 {[%clk 0:02:58.5]} 9. Nf3 {[%clk 0:02:58.9]}
9... Nc6 {[%clk 0:02:58.6]} 10. Bb5 {[%clk 0:02:57.5]} 10... a6 {[%clk
0:02:57.5]} 11. Ba4 {[%clk 0:02:58]} 11... e6 {[%clk 0:02:57]} 12. Bf4 {[%clk
0:02:55]} 12... Kd7 {[%clk 0:02:56.3]} 13. Rc1 {[%clk 0:02:35.9]} 13... Be4
{[%clk 0:02:52.3]} 14. Ke2 {[%clk 0:02:20.7]} 14... Bd6 {[%clk 0:02:50]} 15.
Bxd6 {[%clk 0:02:17.4]} 15... Kxd6 {[%clk 0:02:50.9]} 16. Nd2 {[%clk 0:02:11.1]}
16... Bxg2 {[%clk 0:02:48.4]} 17. Rhg1 {[%clk 0:02:11.8]} 17... Rhg8 {[%clk
0:02:48.6]} 18. Bc2 {[%clk 0:01:54.7]} 18... Rg7 {[%clk 0:02:47.8]} 19. Nb3
{[%clk 0:01:34.8]} 19... Rag8 {[%clk 0:02:47.3]} 20. Ke3 {[%clk 0:01:30.9]}
20... b6 {[%clk 0:02:47.1]} 21. Bd3 {[%clk 0:01:30]} 21... a5 {[%clk 0:02:44.9]}
22. c4 {[%clk 0:01:28.3]} 22... dxc4 {[%clk 0:02:40.1]} 23. Bxc4 {[%clk
0:01:21]} 23... Bd5 {[%clk 0:02:40]} 24. Rxg7 {[%clk 0:01:20.1]} 24... Rxg7
{[%clk 0:02:40.1]} 25. Nd2 {[%clk 0:01:19.2]} 25... Rg4 {[%clk 0:02:37.2]} 26.
Be2 {[%clk 0:01:17.3]} 26... Rh4 {[%clk 0:02:31.2]} 27. Nc4+ {[%clk 0:00:48.3]}
27... Bxc4 {[%clk 0:02:27.1]} 28. Rxc4 {[%clk 0:00:49.2]} 28... Nb4 {[%clk
0:02:20.3]} 29. a3 {[%clk 0:00:45.9]} 29... Nd5+ {[%clk 0:02:19.4]} 30. Kf3
{[%clk 0:00:44]} 30... Rh3+ {[%clk 0:02:16.2]} 31. Kg2 {[%clk 0:00:39.7]} 31...
Nf4+ {[%clk 0:02:12.4]} 32. Kf1 {[%clk 0:00:38.2]} 32... Rxh2 {[%clk 0:02:07]}
33. Bf3 {[%clk 0:00:36.8]} 33... Rh3 {[%clk 0:02:07.3]} 34. Ba8 {[%clk
0:00:30.6]} 34... Kd7 {[%clk 0:02:01.4]} 35. Bc6+ {[%clk 0:00:21.5]} 35... Ke7
{[%clk 0:02:00.4]} 36. b4 {[%clk 0:00:20.2]} 36... Rxa3 {[%clk 0:01:59.8]} 37.
f3 {[%clk 0:00:18.6]} 37... axb4 {[%clk 0:01:53.1]} 38. Kf2 {[%clk 0:00:17.8]}
38... b3 {[%clk 0:01:52.3]} 39. Kg3 {[%clk 0:00:17.2]} 39... b2 {[%clk
0:01:48.3]} 40. Rb4 {[%clk 0:00:17.2]} 40... Nd3 {[%clk 0:01:48.2]} 41. Rxb6
{[%clk 0:00:17.8]} 41... Ra1 {[%clk 0:01:45.7]} 42. Be4 {[%clk 0:00:16.6]} 42...
b1=Q {[%clk 0:01:46]} 43. Rxb1 {[%clk 0:00:16.4]} 43... Rxb1 {[%clk 0:01:46.9]}
44. Bxd3 {[%clk 0:00:17.2]} 44... Rd1 {[%clk 0:01:47.1]} 45. Bxh7 {[%clk
0:00:17.4]} 45... Rxd4 {[%clk 0:01:47.5]} 46. Be4 {[%clk 0:00:18.1]} 46... f5
{[%clk 0:01:47.8]} 47. Bc2 {[%clk 0:00:17]} 47... Kf6 {[%clk 0:01:48.1]} 48. f4
{[%clk 0:00:16.8]} 48... Rb4 {[%clk 0:01:49]} 49. Bd1 {[%clk 0:00:17.2]} 49...
Rb2 {[%clk 0:01:49]} 50. Kf3 {[%clk 0:00:16.9]} 50... Ra2 {[%clk 0:01:48.9]} 51.
Kg3 {[%clk 0:00:17]} 51... Ra3+ {[%clk 0:01:49.8]} 52. Kf2 {[%clk 0:00:17.4]}
52... Ke7 {[%clk 0:01:50.1]} 53. Be2 {[%clk 0:00:16.7]} 53... f6 {[%clk
0:01:50.5]} 54. Bc4 {[%clk 0:00:17.5]} 54... e5 {[%clk 0:01:50.8]} 55. fxe5
{[%clk 0:00:18.2]} 55... fxe5 {[%clk 0:01:51.7]} 56. Bd5 {[%clk 0:00:19]} 56...
Kf6 {[%clk 0:01:52]} 57. Bg2 {[%clk 0:00:19.9]} 57... e4 {[%clk 0:01:52.4]} 58.
Kg1 {[%clk 0:00:19.9]} 58... Ke5 {[%clk 0:01:52.9]} 59. Kh2 {[%clk 0:00:20.8]}
59... f4 {[%clk 0:01:53.5]} 60. Bh3 {[%clk 0:00:21.2]} 60... f3 {[%clk
0:01:53.9]} 61. Bf1 {[%clk 0:00:22.1]} 61... Kf4 {[%clk 0:01:54.4]} 62. Kg1
{[%clk 0:00:22.4]} 62... e3 {[%clk 0:01:54.9]} 63. Kh1 {[%clk 0:00:22.2]} 63...
Ra1 {[%clk 0:01:54.5]} 64. Kh2 {[%clk 0:00:22.9]} 64... Rxf1 {[%clk 0:01:54.3]}
65. Kh3 {[%clk 0:00:23.8]} 65... Rh1# {[%clk 0:01:54.9]} 0-1

[Event "Early-Titled-Tuesday-Blitz-February-13-2024"]
[Site "Chess.com"]
[Date "2024.02.13"]
[Round "7"]
[White "marsofsilva"]
[Black "verrbaa"]
[Result "0-1"]
[WhiteElo "2135"]
[BlackElo "2482"]
[TimeControl "180+1"]
[EndTime "9:19:36 PST"]
[Termination "verrbaa won by resignation"]

1. e4 {[%clk 0:03:00.9]} 1... e5 {[%clk 0:02:59.1]} 2. Nf3 {[%clk 0:03:00.7]}
2... Nc6 {[%clk 0:02:59.1]} 3. Bc4 {[%clk 0:03:00.7]} 3... Nf6 {[%clk
0:02:58.8]} 4. Ng5 {[%clk 0:02:59.2]} 4... d5 {[%clk 0:02:58.3]} 5. exd5 {[%clk
0:02:59.7]} 5... Na5 {[%clk 0:02:58.3]} 6. Bb5+ {[%clk 0:02:59.8]} 6... c6
{[%clk 0:02:58.4]} 7. dxc6 {[%clk 0:03:00.7]} 7... bxc6 {[%clk 0:02:58.7]} 8.
Bd3 {[%clk 0:03:00.5]} 8... Nd5 {[%clk 0:02:49.1]} 9. Nf3 {[%clk 0:02:58.5]}
9... Bd6 {[%clk 0:02:42.7]} 10. O-O {[%clk 0:02:58]} 10... O-O {[%clk
0:02:42.4]} 11. Re1 {[%clk 0:02:58.2]} 11... Qc7 {[%clk 0:02:34.9]} 12. c4
{[%clk 0:02:51.6]} 12... Nf4 {[%clk 0:02:34]} 13. Bf1 {[%clk 0:02:51.8]} 13...
Bg4 {[%clk 0:02:24.3]} 14. d4 {[%clk 0:02:39.2]} 14... exd4 {[%clk 0:02:19.3]}
15. Qxd4 {[%clk 0:02:37.6]} 15... Bxf3 {[%clk 0:02:17.9]} 16. gxf3 {[%clk
0:02:36.8]} 16... Ne6 {[%clk 0:02:15.2]} 17. Qh4 {[%clk 0:02:25.2]} 17... Nb7
{[%clk 0:02:10.9]} 18. Nc3 {[%clk 0:02:17.9]} 18... Rae8 {[%clk 0:01:41.1]} 19.
Bd3 {[%clk 0:02:16.4]} 19... f5 {[%clk 0:01:25.9]} 20. Bd2 {[%clk 0:01:58.3]}
20... Nbc5 {[%clk 0:01:24.4]} 21. Bf1 {[%clk 0:01:51.5]} 21... a5 {[%clk
0:01:22.8]} 22. a3 {[%clk 0:01:50.6]} 22... Nb3 {[%clk 0:01:22.3]} 23. Rad1
{[%clk 0:01:46.3]} 23... Nxd2 {[%clk 0:01:18.9]} 24. Rxd2 {[%clk 0:01:47.2]}
24... Rf6 {[%clk 0:01:18.9]} 25. c5 {[%clk 0:01:29.4]} 25... Bf4 {[%clk
0:01:09.3]} 26. Rde2 {[%clk 0:01:03.6]} 26... Rh6 {[%clk 0:00:49.1]} 27. Rxe6
{[%clk 0:01:03.3]} 27... Rexe6 {[%clk 0:00:42.3]} 28. Rxe6 {[%clk 0:00:57.6]}
28... Rxh4 {[%clk 0:00:42.4]} 29. h3 {[%clk 0:00:45.2]} 29... Be5 {[%clk
0:00:22.6]} 30. Bc4 {[%clk 0:00:41.4]} 30... Rxc4 {[%clk 0:00:22]} 0-1

[Event "Early-Titled-Tuesday-Blitz-February-13-2024"]
[Site "Chess.com"]
[Date "2024.02.13"]
[Round "7"]
[White "Crazy_girl99"]
[Black "GrumbleBruno"]
[Result "1-0"]
[WhiteElo "2597"]
[BlackElo "2463"]
[TimeControl "180+1"]
[EndTime "9:19:37 PST"]
[Termination "Crazy_girl99 won by resignation"]

1. e4 {[%clk 0:03:00.9]} 1... e5 {[%clk 0:02:58.7]} 2. Nf3 {[%clk 0:03:00.6]}
2... d5 {[%clk 0:02:58.9]} 3. Nxe5 {[%clk 0:02:57.3]} 3... Bd6 {[%clk
0:02:58.3]} 4. d4 {[%clk 0:02:56.9]} 4... dxe4 {[%clk 0:02:58.4]} 5. Nc3 {[%clk
0:02:56.6]} 5... Bxe5 {[%clk 0:02:58.2]} 6. dxe5 {[%clk 0:02:56.9]} 6... Qxd1+
{[%clk 0:02:58.6]} 7. Nxd1 {[%clk 0:02:56.9]} 7... Nc6 {[%clk 0:02:58]} 8. Bf4
{[%clk 0:02:55.8]} 8... Nge7 {[%clk 0:02:57.7]} 9. Bb5 {[%clk 0:02:54.4]} 9...
Bd7 {[%clk 0:02:52.4]} 10. Nc3 {[%clk 0:02:52.8]} 10... O-O-O {[%clk 0:02:51.2]}
11. O-O-O {[%clk 0:02:49]} 11... Ng6 {[%clk 0:02:49.5]} 12. Bg5 {[%clk
0:02:42.7]} 12... Rde8 {[%clk 0:02:48.4]} 13. Rhe1 {[%clk 0:02:21]} 13... Rxe5
{[%clk 0:02:38.8]} 14. Be3 {[%clk 0:02:20.9]} 14... f5 {[%clk 0:02:34.9]} 15.
Bxa7 {[%clk 0:01:51.9]} 15... Rxb5 {[%clk 0:01:19.1]} 16. Nxb5 {[%clk
0:01:50.6]} 16... b6 {[%clk 0:01:19.5]} 17. Nxc7 {[%clk 0:01:30.6]} 17... Nxa7
{[%clk 0:00:58.2]} 18. Nd5 {[%clk 0:01:29.6]} 18... Be6 {[%clk 0:00:49.3]} 19.
Nxb6+ {[%clk 0:01:27]} 19... Kc7 {[%clk 0:00:49.1]} 20. Nd5+ {[%clk 0:01:26.6]}
20... Kc6 {[%clk 0:00:49.3]} 21. Nb4+ {[%clk 0:01:25]} 21... Kc7 {[%clk
0:00:49.3]} 22. a3 {[%clk 0:01:23.7]} 22... Nc6 {[%clk 0:00:44.8]} 23. Nxc6
{[%clk 0:01:19.5]} 23... Kxc6 {[%clk 0:00:44.9]} 24. f3 {[%clk 0:01:20.1]} 24...
Bd5 {[%clk 0:00:39.7]} 25. c4 {[%clk 0:01:12.2]} 25... Bxc4 {[%clk 0:00:39.3]}
26. fxe4 {[%clk 0:01:12.3]} 26... f4 {[%clk 0:00:37]} 27. e5 {[%clk 0:01:09]}
27... Re8 {[%clk 0:00:33.4]} 28. Rd6+ {[%clk 0:01:06.1]} 28... Kc7 {[%clk
0:00:33.4]} 29. Rd4 {[%clk 0:01:06.3]} 29... Be6 {[%clk 0:00:29.4]} 30. b4
{[%clk 0:01:03.6]} 30... Ra8 {[%clk 0:00:21.6]} 31. Kb2 {[%clk 0:01:02.7]} 31...
Re8 {[%clk 0:00:18.2]} 32. a4 {[%clk 0:01:00.6]} 32... Rb8 {[%clk 0:00:17.8]}
33. b5 {[%clk 0:01:00.4]} 33... Ne7 {[%clk 0:00:16.3]} 34. Rc1+ {[%clk
0:00:59.1]} 34... Kb7 {[%clk 0:00:15.2]} 35. Rd6 {[%clk 0:00:59.5]} 35... Bf5
{[%clk 0:00:13.4]} 36. a5 {[%clk 0:00:58.9]} 1-0

[Event "Early-Titled-Tuesday-Blitz-February-13-2024"]
[Site "Chess.com"]
[Date "2024.02.13"]
[Round "7"]
[White "RantomOpening"]
[Black "Roman_Ovetchkin"]
[Result "1-0"]
[WhiteElo "2491"]
[BlackElo "2614"]
[TimeControl "180+1"]
[EndTime "9:19:38 PST"]
[Termination "RantomOpening won on time"]

1. c4 {[%clk 0:02:51.7]} 1... Nf6 {[%clk 0:02:58.5]} 2. Nf3 {[%clk 0:02:51.7]}
2... g6 {[%clk 0:02:57.8]} 3. Nc3 {[%clk 0:02:51]} 3... Bg7 {[%clk 0:02:57.9]}
4. e4 {[%clk 0:02:51.3]} 4... d6 {[%clk 0:02:57.8]} 5. d4 {[%clk 0:02:51.7]}
5... O-O {[%clk 0:02:57.2]} 6. Be2 {[%clk 0:02:52.2]} 6... e5 {[%clk 0:02:57.2]}
7. Be3 {[%clk 0:02:52.4]} 7... Ng4 {[%clk 0:02:50.1]} 8. Bg5 {[%clk 0:02:51.5]}
8... f6 {[%clk 0:02:50.1]} 9. Bc1 {[%clk 0:02:51.7]} 9... Nc6 {[%clk 0:02:45.8]}
10. h3 {[%clk 0:02:49.9]} 10... Nh6 {[%clk 0:02:39.8]} 11. dxe5 {[%clk 0:02:50]}
11... dxe5 {[%clk 0:02:36.1]} 12. Be3 {[%clk 0:02:50]} 12... Nf7 {[%clk
0:02:31.3]} 13. O-O {[%clk 0:02:49.4]} 13... Be6 {[%clk 0:02:29.4]} 14. Nd5
{[%clk 0:02:45.7]} 14... Re8 {[%clk 0:01:55.4]} 15. b4 {[%clk 0:02:31.8]} 15...
Qc8 {[%clk 0:01:51.7]} 16. b5 {[%clk 0:02:30.6]} 16... Ncd8 {[%clk 0:01:33.1]}
17. c5 {[%clk 0:02:28.6]} 17... c6 {[%clk 0:01:31.9]} 18. Nc3 {[%clk 0:02:26.5]}
18... f5 {[%clk 0:01:08.5]} 19. exf5 {[%clk 0:02:25.6]} 19... gxf5 {[%clk
0:01:08.4]} 20. Ng5 {[%clk 0:02:21.4]} 20... Nxg5 {[%clk 0:01:06.9]} 21. Bxg5
{[%clk 0:02:22.3]} 21... Nf7 {[%clk 0:01:07.3]} 22. Bc1 {[%clk 0:02:15.4]} 22...
e4 {[%clk 0:01:05]} 23. Bb2 {[%clk 0:02:14.8]} 23... cxb5 {[%clk 0:01:03.5]} 24.
Bxb5 {[%clk 0:02:14.4]} 24... Qxc5 {[%clk 0:01:02.6]} 25. Bxe8 {[%clk
0:02:11.5]} 25... Rxe8 {[%clk 0:01:00.8]} 26. Rc1 {[%clk 0:02:07.8]} 26... Qb4
{[%clk 0:00:51.8]} 27. Ba1 {[%clk 0:01:33.6]} 27... Rd8 {[%clk 0:00:42.9]} 28.
Qh5 {[%clk 0:01:30.5]} 28... Rd3 {[%clk 0:00:29.1]} 29. Ne2 {[%clk 0:01:22.5]}
29... Bxa1 {[%clk 0:00:23.4]} 30. Rxa1 {[%clk 0:01:23.4]} 30... Qd6 {[%clk
0:00:21.8]} 31. Qh4 {[%clk 0:01:19]} 31... Qd8 {[%clk 0:00:13.8]} 32. Qh5 {[%clk
0:01:17.1]} 32... Qg5 {[%clk 0:00:09.5]} 33. Qxg5+ {[%clk 0:01:14]} 33... Nxg5
{[%clk 0:00:10.4]} 34. Nf4 {[%clk 0:01:14.9]} 34... Ra3 {[%clk 0:00:06.7]} 35.
h4 {[%clk 0:01:14.7]} 1-0

[Event "Early-Titled-Tuesday-Blitz-February-13-2024"]
[Site "Chess.com"]
[Date "2024.02.13"]
[Round "7"]
[White "bitter-cikolata"]
[Black "Witik"]
[Result "1-0"]
[WhiteElo "2510"]
[BlackElo "2678"]
[TimeControl "180+1"]
[EndTime "9:19:41 PST"]
[Termination "bitter-cikolata won by resignation"]

1. e4 {[%clk 0:03:00.9]} 1... c6 {[%clk 0:02:59.9]} 2. d4 {[%clk 0:02:57.4]}
2... d5 {[%clk 0:03:00.5]} 3. f3 {[%clk 0:02:56.7]} 3... dxe4 {[%clk 0:02:59.6]}
4. fxe4 {[%clk 0:02:57.6]} 4... e5 {[%clk 0:03:00]} 5. Nf3 {[%clk 0:02:57.7]}
5... Bg4 {[%clk 0:03:00.6]} 6. Bc4 {[%clk 0:02:56.8]} 6... Nd7 {[%clk 0:02:58]}
7. c3 {[%clk 0:02:56.6]} 7... Bh5 {[%clk 0:02:47.4]} 8. O-O {[%clk 0:02:11.8]}
8... Ngf6 {[%clk 0:02:27.9]} 9. Bg5 {[%clk 0:02:12.2]} 9... Be7 {[%clk
0:02:23.5]} 10. Nbd2 {[%clk 0:02:07.6]} 10... O-O {[%clk 0:02:21.2]} 11. Qe1
{[%clk 0:02:05.7]} 11... b5 {[%clk 0:02:14.7]} 12. Bb3 {[%clk 0:02:04]} 12...
Ng4 {[%clk 0:01:15.4]} 13. Qh4 {[%clk 0:01:47.5]} 13... Bxg5 {[%clk 0:01:03.4]}
14. Nxg5 {[%clk 0:01:48.4]} 14... h6 {[%clk 0:01:04]} 15. Qxh5 {[%clk 0:01:45]}
15... Qxg5 {[%clk 0:01:04.1]} 16. Bxf7+ {[%clk 0:01:42.7]} 16... Kh8 {[%clk
0:01:03]} 17. Qxg5 {[%clk 0:01:42.5]} 17... hxg5 {[%clk 0:01:03.6]} 18. Be6
{[%clk 0:01:39.9]} 18... Ngf6 {[%clk 0:01:00.3]} 19. Nf3 {[%clk 0:01:29.2]}
19... g4 {[%clk 0:00:54.4]} 20. Nxe5 {[%clk 0:01:22.8]} 20... Nxe5 {[%clk
0:00:51.9]} 21. dxe5 {[%clk 0:01:23.4]} 21... Nxe4 {[%clk 0:00:52.7]} 22. Bxg4
{[%clk 0:01:21]} 22... Rfe8 {[%clk 0:00:42.8]} 23. e6 {[%clk 0:01:16.9]} 23...
Rad8 {[%clk 0:00:39]} 24. Rae1 {[%clk 0:01:05.1]} 24... Nf6 {[%clk 0:00:37.3]}
25. e7 {[%clk 0:00:52.1]} 25... Rb8 {[%clk 0:00:21.5]} 26. Rxf6 {[%clk
0:00:43.5]} 26... gxf6 {[%clk 0:00:21.8]} 27. Bd7 {[%clk 0:00:44]} 27... Kg7
{[%clk 0:00:18.2]} 28. Bxc6 {[%clk 0:00:43.3]} 28... Kf7 {[%clk 0:00:18.7]} 29.
Bxe8+ {[%clk 0:00:42.6]} 29... Rxe8 {[%clk 0:00:18.3]} 30. Kf2 {[%clk
0:00:42.6]} 1-0

[Event "Early-Titled-Tuesday-Blitz-February-13-2024"]
[Site "Chess.com"]
[Date "2024.02.13"]
[Round "7"]
[White "maurovargas01"]
[Black "hsd2016"]
[Result "0-1"]
[WhiteElo "1889"]
[BlackElo "2334"]
[TimeControl "180+1"]
[EndTime "9:19:43 PST"]
[Termination "hsd2016 won by checkmate"]

1. e4 {[%clk 0:03:00]} 1... c5 {[%clk 0:02:59.4]} 2. Nc3 {[%clk 0:02:59.9]} 2...
e6 {[%clk 0:02:56.4]} 3. f4 {[%clk 0:02:56]} 3... d5 {[%clk 0:02:53.6]} 4. e5
{[%clk 0:02:51.4]} 4... Nc6 {[%clk 0:02:51.2]} 5. Bb5 {[%clk 0:02:49.2]} 5...
Bd7 {[%clk 0:02:49.6]} 6. Bxc6 {[%clk 0:02:50.1]} 6... Bxc6 {[%clk 0:02:47.9]}
7. d3 {[%clk 0:02:49.8]} 7... d4 {[%clk 0:02:38.8]} 8. Ne4 {[%clk 0:02:48.7]}
8... f5 {[%clk 0:02:36.9]} 9. exf6 {[%clk 0:02:47]} 9... Nxf6 {[%clk 0:02:35.9]}
10. Nxf6+ {[%clk 0:02:44.3]} 10... Qxf6 {[%clk 0:02:36.8]} 11. Nf3 {[%clk
0:02:44.1]} 11... Bd6 {[%clk 0:02:34.9]} 12. g3 {[%clk 0:02:40.9]} 12... O-O-O
{[%clk 0:02:27.3]} 13. O-O {[%clk 0:02:34]} 13... Rhf8 {[%clk 0:02:20.8]} 14.
Qe1 {[%clk 0:02:30.3]} 14... h6 {[%clk 0:02:17.3]} 15. Bd2 {[%clk 0:02:27.9]}
15... Qg6 {[%clk 0:02:12.2]} 16. Ne5 {[%clk 0:02:00.9]} 16... Bxe5 {[%clk
0:02:00.5]} 17. Qxe5 {[%clk 0:01:54.6]} 17... Rd5 {[%clk 0:01:59.5]} 18. Qe2
{[%clk 0:01:50.2]} 18... Rdf5 {[%clk 0:01:41.1]} 19. Rae1 {[%clk 0:01:42.9]}
19... Kd7 {[%clk 0:01:38.5]} 20. b4 {[%clk 0:01:38.2]} 20... h5 {[%clk
0:01:31.7]} 21. bxc5 {[%clk 0:01:34.3]} 21... h4 {[%clk 0:01:30.4]} 22. Qf2
{[%clk 0:01:24.1]} 22... Rh5 {[%clk 0:01:04.5]} 23. Qxd4+ {[%clk 0:01:21.9]}
23... Kc8 {[%clk 0:01:04.1]} 24. Qd6 {[%clk 0:01:11.8]} 24... Rf6 {[%clk
0:00:51.5]} 25. Bc3 {[%clk 0:01:03.8]} 25... hxg3 {[%clk 0:00:50.1]} 26. Re2
{[%clk 0:00:45.3]} 26... gxh2+ {[%clk 0:00:48.5]} 27. Kf2 {[%clk 0:00:44.6]}
27... Qg2+ {[%clk 0:00:46.7]} 28. Ke1 {[%clk 0:00:43.7]} 28... Qxf1+ {[%clk
0:00:47]} 29. Kxf1 {[%clk 0:00:41.2]} 29... h1=Q+ {[%clk 0:00:47.9]} 30. Kf2
{[%clk 0:00:41]} 30... Rh2+ {[%clk 0:00:47.8]} 31. Ke3 {[%clk 0:00:40.8]} 31...
Qf3+ {[%clk 0:00:42.9]} 32. Kd4 {[%clk 0:00:30]} 32... Rxf4+ {[%clk 0:00:41.8]}
33. Ke5 {[%clk 0:00:29.2]} 33... Rxe2# {[%clk 0:00:39.6]} 0-1

[Event "Early-Titled-Tuesday-Blitz-February-13-2024"]
[Site "Chess.com"]
[Date "2024.02.13"]
[Round "7"]
[White "colegiodemadrid"]
[Black "mr_gustavo"]
[Result "1-0"]
[WhiteElo "2559"]
[BlackElo "2729"]
[TimeControl "180+1"]
[EndTime "9:19:44 PST"]
[Termination "colegiodemadrid won by resignation"]

1. e4 {[%clk 0:02:59.3]} 1... e6 {[%clk 0:02:50.1]} 2. d4 {[%clk 0:02:59.1]}
2... d5 {[%clk 0:02:51]} 3. e5 {[%clk 0:02:59.5]} 3... c5 {[%clk 0:02:51]} 4. c3
{[%clk 0:03:00.1]} 4... Bd7 {[%clk 0:02:51.7]} 5. Nf3 {[%clk 0:03:00]} 5... a6
{[%clk 0:02:52.4]} 6. a4 {[%clk 0:02:46.6]} 6... cxd4 {[%clk 0:02:51.2]} 7. Nxd4
{[%clk 0:02:43.5]} 7... Nc6 {[%clk 0:02:51.2]} 8. Nxc6 {[%clk 0:02:43.1]} 8...
Bxc6 {[%clk 0:02:52.1]} 9. Be3 {[%clk 0:02:39]} 9... Ne7 {[%clk 0:02:52.6]} 10.
Nd2 {[%clk 0:02:38.2]} 10... Ng6 {[%clk 0:02:53.1]} 11. Nf3 {[%clk 0:02:38.2]}
11... Be7 {[%clk 0:02:53.4]} 12. Bd3 {[%clk 0:02:29.9]} 12... Qc7 {[%clk
0:02:53.1]} 13. Bd4 {[%clk 0:02:29.7]} 13... O-O {[%clk 0:02:52.1]} 14. O-O
{[%clk 0:02:29.6]} 14... b6 {[%clk 0:02:47.1]} 15. a5 {[%clk 0:02:27.6]} 15...
bxa5 {[%clk 0:02:46.4]} 16. Re1 {[%clk 0:02:27.4]} 16... Rab8 {[%clk 0:02:44.8]}
17. Qd2 {[%clk 0:02:24.7]} 17... a4 {[%clk 0:02:42.4]} 18. Bxa6 {[%clk
0:02:20.5]} 18... Rfe8 {[%clk 0:02:31.8]} 19. Bd3 {[%clk 0:02:16.3]} 19... Nf8
{[%clk 0:02:31.7]} 20. h4 {[%clk 0:02:10.1]} 20... h6 {[%clk 0:02:28.8]} 21. Nh2
{[%clk 0:02:05.4]} 21... Bxh4 {[%clk 0:02:21.5]} 22. Ng4 {[%clk 0:02:02.9]}
22... Bg5 {[%clk 0:02:22]} 23. f4 {[%clk 0:01:59.6]} 23... Be7 {[%clk
0:02:22.6]} 24. Qe3 {[%clk 0:01:58.7]} 24... Rxb2 {[%clk 0:02:19.1]} 25. Qg3
{[%clk 0:01:59.1]} 25... Kh8 {[%clk 0:02:16.4]} 26. f5 {[%clk 0:01:43.8]} 26...
exf5 {[%clk 0:02:09.6]} 27. Nxh6 {[%clk 0:01:43.7]} 27... Bc5 {[%clk 0:01:01.6]}
28. Nxf5 {[%clk 0:01:29.5]} 28... Bxd4+ {[%clk 0:01:01.3]} 29. cxd4 {[%clk
0:01:28]} 29... Ng6 {[%clk 0:01:01.1]} 30. Nd6 {[%clk 0:01:23.1]} 30... Re6
{[%clk 0:00:21.3]} 31. Rf1 {[%clk 0:01:11.9]} 31... Be8 {[%clk 0:00:10.7]} 32.
Bf5 {[%clk 0:01:11.5]} 32... Re7 {[%clk 0:00:06.9]} 33. Bxg6 {[%clk 0:01:07.8]}
33... Qa7 {[%clk 0:00:04.7]} 34. Qh4+ {[%clk 0:01:06.3]} 1-0

[Event "Early-Titled-Tuesday-Blitz-February-13-2024"]
[Site "Chess.com"]
[Date "2024.02.13"]
[Round "7"]
[White "Dewarfd"]
[Black "UK_23"]
[Result "0-1"]
[WhiteElo "2164"]
[BlackElo "2365"]
[TimeControl "180+1"]
[EndTime "9:19:44 PST"]
[Termination "UK_23 won on time"]

1. d4 {[%clk 0:02:59.2]} 1... d5 {[%clk 0:02:58.4]} 2. e3 {[%clk 0:02:59]} 2...
Nf6 {[%clk 0:02:58.3]} 3. Nf3 {[%clk 0:02:58.8]} 3... c6 {[%clk 0:02:58.3]} 4.
c4 {[%clk 0:02:57.1]} 4... Bf5 {[%clk 0:02:58.2]} 5. Bd3 {[%clk 0:02:56.5]} 5...
Bxd3 {[%clk 0:02:58.1]} 6. Qxd3 {[%clk 0:02:56.4]} 6... e6 {[%clk 0:02:58.6]} 7.
O-O {[%clk 0:02:56.3]} 7... Be7 {[%clk 0:02:59]} 8. b3 {[%clk 0:02:55.9]} 8...
O-O {[%clk 0:02:59.5]} 9. Ba3 {[%clk 0:02:49.7]} 9... a5 {[%clk 0:02:56.7]} 10.
Bxe7 {[%clk 0:02:48.3]} 10... Qxe7 {[%clk 0:02:55.9]} 11. Nc3 {[%clk 0:02:48.3]}
11... Nbd7 {[%clk 0:02:53.1]} 12. e4 {[%clk 0:02:48.1]} 12... dxe4 {[%clk
0:02:52.7]} 13. Nxe4 {[%clk 0:02:49]} 13... Nxe4 {[%clk 0:02:53.2]} 14. Qxe4
{[%clk 0:02:49.9]} 14... Rad8 {[%clk 0:02:46.7]} 15. Rfe1 {[%clk 0:02:42.9]}
15... Rfe8 {[%clk 0:02:43.4]} 16. a3 {[%clk 0:02:14]} 16... Nf6 {[%clk 0:02:41]}
17. Qe5 {[%clk 0:02:13.3]} 17... Qd6 {[%clk 0:02:40.1]} 18. Qxa5 {[%clk
0:02:09.9]} 18... h6 {[%clk 0:02:28.2]} 19. Qb4 {[%clk 0:02:06.6]} 19... Qc7
{[%clk 0:02:22.9]} 20. a4 {[%clk 0:02:04.8]} 20... Rd7 {[%clk 0:02:12.8]} 21. h3
{[%clk 0:02:00.1]} 21... Red8 {[%clk 0:02:13]} 22. a5 {[%clk 0:01:56.2]} 22...
Nh5 {[%clk 0:02:10.2]} 23. Re4 {[%clk 0:01:34.1]} 23... Nf6 {[%clk 0:02:08.7]}
24. Re2 {[%clk 0:01:21.7]} 24... Ra8 {[%clk 0:02:08.6]} 25. Rea2 {[%clk
0:01:21.1]} 25... Ra6 {[%clk 0:02:08.1]} 26. Qe1 {[%clk 0:01:05.8]} 26... Rd8
{[%clk 0:02:03.1]} 27. b4 {[%clk 0:01:05]} 27... Raa8 {[%clk 0:02:02.7]} 28. Qe5
{[%clk 0:00:56.2]} 28... Qe7 {[%clk 0:02:02]} 29. b5 {[%clk 0:00:55.3]} 29...
cxb5 {[%clk 0:02:01]} 30. cxb5 {[%clk 0:00:56.2]} 30... Rd5 {[%clk 0:02:01.8]}
31. Qe2 {[%clk 0:00:55.2]} 31... Qb4 {[%clk 0:01:56.7]} 32. a6 {[%clk
0:00:36.1]} 32... Qxb5 {[%clk 0:01:56.3]} 33. axb7 {[%clk 0:00:06.1]} 33... Rxa2
{[%clk 0:01:54.4]} 34. Rxa2 {[%clk 0:00:04.7]} 34... Qxb7 {[%clk 0:01:53.6]} 35.
Rb2 {[%clk 0:00:04]} 35... Qc7 {[%clk 0:01:49.2]} 36. Qc2 {[%clk 0:00:01.5]}
36... Qxc2 {[%clk 0:01:47]} 37. Rxc2 {[%clk 0:00:02.4]} 37... g6 {[%clk
0:01:47.5]} 38. Rc7 {[%clk 0:00:02.2]} 38... Kg7 {[%clk 0:01:48.1]} 39. g3
{[%clk 0:00:01.8]} 39... Rd7 {[%clk 0:01:47.3]} 40. Rc8 {[%clk 0:00:01.7]} 40...
Ne4 {[%clk 0:01:41.5]} 41. Kg2 {[%clk 0:00:01.3]} 41... h5 {[%clk 0:01:39.8]}
42. Ne5 {[%clk 0:00:01.6]} 42... Rxd4 {[%clk 0:01:36.4]} 43. Rc7 {[%clk
0:00:01.8]} 43... Nd6 {[%clk 0:01:33.9]} 0-1